[Event "Titled Tuesday Blitz August 15 Early 2023"]
[White "FromTexas54"]
[Black "Okike, David"]
[BlackFideId "8500134"]
[WhiteElo "2501"]
[BlackElo "2343"]
[Result "1-0"]
[Round "5"]
[TimeControl "180+1"]
[Date "2023.08.15"]
[WhiteClock "0:00:04"]
[BlackClock "0:00:26"]
[Board "151"]

1. Nf3 {[%clk 0:02:50]}  Nf6 {[%clk 0:02:58]} 2. g3 {[%clk 0:02:50]}  g6 {[%clk 0:02:57]} 3. Bg2 {[%clk 0:02:51]}  Bg7 {[%clk 0:02:58]} 4. O-O {[%clk 0:02:49]}  O-O {[%clk 0:02:58]} 5. d4 {[%clk 0:02:45]}  d6 {[%clk 0:02:58]} 6. b3 {[%clk 0:02:41]}  a5 {[%clk 0:02:57]} 7. Bb2 {[%clk 0:02:40]}  a4 {[%clk 0:02:57]} 8. c4 {[%clk 0:02:40]}  Nc6 {[%clk 0:02:53]} 9. d5 {[%clk 0:02:39]}  Nb8 {[%clk 0:02:50]} 10. Nd4 {[%clk 0:02:35]}  Nbd7 {[%clk 0:02:44]} 11. b4 {[%clk 0:02:34]}  Nb6 {[%clk 0:02:43]} 12. Qc2 {[%clk 0:02:34]}  Nfd7 {[%clk 0:02:39]} 13. a3 {[%clk 0:02:31]}  Nf6 {[%clk 0:02:35]} 14. Rd1 {[%clk 0:02:30]}  Bg4 {[%clk 0:02:34]} 15. h3 {[%clk 0:02:28]}  Bd7 {[%clk 0:02:34]} 16. e4 {[%clk 0:02:26]}  Ne8 {[%clk 0:02:10]} 17. c5 {[%clk 0:02:18]}  Nc8 {[%clk 0:02:06]} 18. c6 {[%clk 0:02:18]}  bxc6 {[%clk 0:02:06]} 19. dxc6 {[%clk 0:02:18]}  Be6 {[%clk 0:02:06]} 20. Nxe6 {[%clk 0:02:12]}  fxe6 {[%clk 0:02:06]} 21. Bxg7 {[%clk 0:02:11]}  Nxg7 {[%clk 0:02:06]} 22. Nc3 {[%clk 0:02:08]}  Nb6 {[%clk 0:02:06]} 23. Rd4 {[%clk 0:01:46]}  Qe8 {[%clk 0:02:06]} 24. b5 {[%clk 0:01:44]}  Qf7 {[%clk 0:02:04]} 25. Rf1 {[%clk 0:01:42]}  e5 {[%clk 0:02:03]} 26. Rb4 {[%clk 0:01:36]}  Nc4 {[%clk 0:01:54]} 27. Nxa4 {[%clk 0:01:19]}  Nxa3 {[%clk 0:01:52]} 28. Qd3 {[%clk 0:01:13]}  Qa2 {[%clk 0:01:26]} 29. Rc1 {[%clk 0:01:05]}  Nxb5 {[%clk 0:01:23]} 30. Qxb5 {[%clk 0:01:04]}  Rfb8 {[%clk 0:01:23]} 31. Qxb8+ {[%clk 0:01:03]}  Rxb8 {[%clk 0:01:23]} 32. Rxb8+ {[%clk 0:01:04]}  Kf7 {[%clk 0:01:23]} 33. Nc3 {[%clk 0:00:41]}  Qa6 {[%clk 0:01:14]} 34. Nd5 {[%clk 0:00:34]}  Ne6 {[%clk 0:01:14]} 35. Rb7 {[%clk 0:00:26]}  Qa5 {[%clk 0:01:13]} 36. h4 {[%clk 0:00:19]}  Qd2 {[%clk 0:01:09]} 37. Rbb1 {[%clk 0:00:13]}  Nd4 {[%clk 0:01:05]} 38. Rd1 {[%clk 0:00:13]}  Qa5 {[%clk 0:01:05]} 39. Rb7 {[%clk 0:00:07]}  e6 {[%clk 0:00:57]} 40. Nxc7 {[%clk 0:00:05]}  Nxc6 {[%clk 0:00:51]} 41. Nd5+ {[%clk 0:00:05]}  Kf8 {[%clk 0:00:51]} 42. Nf6 {[%clk 0:00:05]}  Nd8 {[%clk 0:00:49]} 43. Rd7 {[%clk 0:00:04]}  d5 {[%clk 0:00:44]} 44. exd5 {[%clk 0:00:04]}  exd5 {[%clk 0:00:43]} 45. R1xd5 {[%clk 0:00:03]}  Nf7 {[%clk 0:00:43]} 46. Nxh7+ {[%clk 0:00:01]}  Kg7 {[%clk 0:00:43]} 47. Ng5 {[%clk 0:00:01]}  Qe1+ {[%clk 0:00:39]} 48. Kh2 {[%clk 0:00:01]}  Kg8 {[%clk 0:00:33]} 49. Rxf7 {[%clk 0:00:02]}  Qa5 {[%clk 0:00:31]} 50. Rdd7 {[%clk 0:00:02]}  Qb6 {[%clk 0:00:27]} 51. Rg7+ {[%clk 0:00:03]}  Kf8 {[%clk 0:00:27]} 52. Rdf7+ {[%clk 0:00:03]}  Ke8 {[%clk 0:00:26]} 53. Rg8# {[%clk 0:00:04]} 1-0


[Site "https://www.chess.com"]

[Event "Titled Tuesday Blitz August 15 Early 2023"]
[White "Karamsetty, Jeevan"]
[Black "Bogaudinov, Rushan"]
[WhiteFideId "2025337"]
[BlackFideId "4129288"]
[WhiteElo "2531"]
[BlackElo "2330"]
[Result "1-0"]
[Round "5"]
[TimeControl "180+1"]
[Date "2023.08.15"]
[WhiteClock "0:00:08"]
[BlackClock "0:00:00"]
[Board "162"]

1. e4 {[%clk 0:03:00]}  c5 {[%clk 0:02:59]} 2. Nf3 {[%clk 0:03:00]}  e6 {[%clk 0:02:59]} 3. d4 {[%clk 0:03:00]}  cxd4 {[%clk 0:03:00]} 4. Nxd4 {[%clk 0:03:01]}  a6 {[%clk 0:03:00]} 5. Bd3 {[%clk 0:03:00]}  Qc7 {[%clk 0:03:00]} 6. O-O {[%clk 0:02:58]}  b5 {[%clk 0:03:00]} 7. Kh1 {[%clk 0:02:56]}  Bb7 {[%clk 0:03:00]} 8. Nc3 {[%clk 0:02:53]}  h5 {[%clk 0:03:00]} 9. a3 {[%clk 0:02:51]}  h4 {[%clk 0:02:59]} 10. h3 {[%clk 0:02:51]}  Nf6 {[%clk 0:02:59]} 11. Bg5 {[%clk 0:02:46]}  Be7 {[%clk 0:02:58]} 12. Qe2 {[%clk 0:02:32]}  Nc6 {[%clk 0:02:58]} 13. Nxc6 {[%clk 0:02:29]}  dxc6 {[%clk 0:02:55]} 14. f4 {[%clk 0:02:26]}  Nh5 {[%clk 0:02:52]} 15. Qg4 {[%clk 0:01:59]}  Ng3+ {[%clk 0:02:49]} 16. Kh2 {[%clk 0:02:00]}  Nxf1+ {[%clk 0:02:49]} 17. Rxf1 {[%clk 0:02:01]}  Bxg5 {[%clk 0:02:44]} 18. Qxg5 {[%clk 0:02:00]}  g6 {[%clk 0:02:44]} 19. e5 {[%clk 0:01:59]}  Qe7 {[%clk 0:02:37]} 20. Qg4 {[%clk 0:01:58]}  O-O-O {[%clk 0:02:36]} 21. Ne4 {[%clk 0:01:49]}  c5 {[%clk 0:02:35]} 22. Nd6+ {[%clk 0:01:28]}  Rxd6 {[%clk 0:02:35]} 23. exd6 {[%clk 0:01:29]}  Qxd6 {[%clk 0:02:35]} 24. Qe2 {[%clk 0:01:27]}  g5 {[%clk 0:02:29]} 25. Qe5 {[%clk 0:01:24]}  Qxe5 {[%clk 0:02:23]} 26. fxe5 {[%clk 0:01:25]}  c4 {[%clk 0:02:17]} 27. Be2 {[%clk 0:01:23]}  Rh7 {[%clk 0:02:16]} 28. b3 {[%clk 0:01:22]}  cxb3 {[%clk 0:02:13]} 29. cxb3 {[%clk 0:01:23]}  Bd5 {[%clk 0:02:12]} 30. a4 {[%clk 0:01:22]}  bxa4 {[%clk 0:01:59]} 31. Bxa6+ {[%clk 0:01:21]}  Kc7 {[%clk 0:01:56]} 32. bxa4 {[%clk 0:01:21]}  Kb6 {[%clk 0:01:54]} 33. Bd3 {[%clk 0:01:21]}  Rg7 {[%clk 0:01:53]} 34. Bb5 {[%clk 0:01:20]}  Kc5 {[%clk 0:01:41]} 35. Be8 {[%clk 0:01:02]}  g4 {[%clk 0:01:30]} 36. hxg4 {[%clk 0:00:55]}  Rxg4 {[%clk 0:01:29]} 37. Rf2 {[%clk 0:00:53]}  Kd4 {[%clk 0:01:22]} 38. Bxf7 {[%clk 0:00:40]}  Kxe5 {[%clk 0:01:20]} 39. Be8 {[%clk 0:00:40]}  Rg3 {[%clk 0:01:13]} 40. Bb5 {[%clk 0:00:36]}  Kd6 {[%clk 0:01:08]} 41. a5 {[%clk 0:00:33]}  Ra3 {[%clk 0:01:05]} 42. a6 {[%clk 0:00:34]}  e5 {[%clk 0:01:00]} 43. Bf1 {[%clk 0:00:30]}  e4 {[%clk 0:00:55]} 44. Rf4 {[%clk 0:00:29]}  e3 {[%clk 0:00:54]} 45. Rxh4 {[%clk 0:00:21]}  Ra1 {[%clk 0:00:54]} 46. Bd3 {[%clk 0:00:18]}  Kc5 {[%clk 0:00:48]} 47. Kg3 {[%clk 0:00:12]}  Ra3 {[%clk 0:00:44]} 48. Be2 {[%clk 0:00:12]}  Ra2 {[%clk 0:00:42]} 49. Bf3 {[%clk 0:00:10]}  e2 {[%clk 0:00:32]} 50. Rh1 {[%clk 0:00:08]}  Bc4 {[%clk 0:00:29]} 51. Re1 {[%clk 0:00:08]}  Kd4 {[%clk 0:00:27]} 52. a7 {[%clk 0:00:06]}  Rxa7 {[%clk 0:00:25]} 53. Bxe2 {[%clk 0:00:06]}  Re7 {[%clk 0:00:23]} 54. Kf2 {[%clk 0:00:07]}  Rf7+ {[%clk 0:00:20]} 55. Bf3 {[%clk 0:00:07]}  Bd3 {[%clk 0:00:20]} 56. Re6 {[%clk 0:00:06]}  Rd7 {[%clk 0:00:19]} 57. Re1 {[%clk 0:00:06]}  Ra7 {[%clk 0:00:18]} 58. g4 {[%clk 0:00:06]}  Ra2+ {[%clk 0:00:17]} 59. Kg3 {[%clk 0:00:07]}  Ra3 {[%clk 0:00:17]} 60. Kf4 {[%clk 0:00:07]}  Ra5 {[%clk 0:00:17]} 61. Re8 {[%clk 0:00:07]}  Bb5 {[%clk 0:00:15]} 62. Rd8+ {[%clk 0:00:06]}  Kc5 {[%clk 0:00:15]} 63. g5 {[%clk 0:00:07]}  Ra4+ {[%clk 0:00:14]} 64. Ke5 {[%clk 0:00:07]}  Ra3 {[%clk 0:00:13]} 65. Be4 {[%clk 0:00:07]}  Rg3 {[%clk 0:00:13]} 66. g6 {[%clk 0:00:07]}  Bc4 {[%clk 0:00:11]} 67. Kf6 {[%clk 0:00:06]}  Rg4 {[%clk 0:00:11]} 68. Bf5 {[%clk 0:00:06]}  Rg1 {[%clk 0:00:10]} 69. g7 {[%clk 0:00:07]}  Kc6 {[%clk 0:00:09]} 70. Rc8+ {[%clk 0:00:06]}  Kb5 {[%clk 0:00:09]} 71. Rd8 {[%clk 0:00:06]}  Kc5 {[%clk 0:00:09]} 72. Rd7 {[%clk 0:00:05]}  Kc6 {[%clk 0:00:09]} 73. Re7 {[%clk 0:00:04]}  Kd6 {[%clk 0:00:08]} 74. Re3 {[%clk 0:00:03]}  Bd5 {[%clk 0:00:06]} 75. Bg6 {[%clk 0:00:03]}  Rf1+ {[%clk 0:00:06]} 76. Kg5 {[%clk 0:00:03]}  Rg1+ {[%clk 0:00:06]} 77. Kh6 {[%clk 0:00:04]}  Rh1+ {[%clk 0:00:06]} 78. Kg5 {[%clk 0:00:04]}  Rg1+ {[%clk 0:00:06]} 79. Kf6 {[%clk 0:00:05]}  Rf1+ {[%clk 0:00:05]} 80. Bf5 {[%clk 0:00:05]}  Rg1 {[%clk 0:00:05]} 81. Re8 {[%clk 0:00:05]}  Kc7 {[%clk 0:00:03]} 82. Be6 {[%clk 0:00:05]}  Bxe6 {[%clk 0:00:01]} 83. Rxe6 {[%clk 0:00:06]}  Rf1+ {[%clk 0:00:01]} 84. Ke7 {[%clk 0:00:06]}  Rg1 {[%clk 0:00:02]} 85. Kf8 {[%clk 0:00:07]}  Rf1+ {[%clk 0:00:01]} 86. Ke7 {[%clk 0:00:07]}  Rg1 {[%clk 0:00:02]} 87. Kf7 {[%clk 0:00:08]}  Kd7 {[%clk 0:00:02]} 88. Rf6 {[%clk 0:00:07]}  Kd8 {[%clk 0:00:03]} 89. g8=Q+ {[%clk 0:00:08]}  Rxg8 {[%clk 0:00:03]} 90. Kxg8 {[%clk 0:00:08]}  Ke7 {[%clk 0:00:00]} 91. Kg7 {[%clk 0:00:08]} 1-0


[Site "https://www.chess.com"]

[Event "Titled Tuesday Blitz August 15 Early 2023"]
[White "Blokhin, Sofia"]
[Black "Reprintsev, Alexander"]
[WhiteFideId "4508190"]
[BlackFideId "14100541"]
[WhiteElo "2297"]
[BlackElo "2487"]
[Result "0-1"]
[Round "5"]
[TimeControl "180+1"]
[Date "2023.08.15"]
[WhiteClock "0:00:11"]
[BlackClock "0:00:25"]
[Board "166"]

1. d4 {[%clk 0:03:00]}  d5 {[%clk 0:02:44]} 2. c4 {[%clk 0:02:59]}  e5 {[%clk 0:02:43]} 3. dxe5 {[%clk 0:02:54]}  d4 {[%clk 0:02:43]} 4. a3 {[%clk 0:02:51]}  Nc6 {[%clk 0:02:42]} 5. Nf3 {[%clk 0:02:49]}  g6 {[%clk 0:02:40]} 6. e3 {[%clk 0:02:47]}  Bg4 {[%clk 0:02:37]} 7. Be2 {[%clk 0:02:42]}  Bxf3 {[%clk 0:02:33]} 8. Bxf3 {[%clk 0:02:41]}  Nge7 {[%clk 0:02:34]} 9. exd4 {[%clk 0:02:30]}  Qxd4 {[%clk 0:02:32]} 10. O-O {[%clk 0:02:25]}  Bg7 {[%clk 0:02:28]} 11. Nc3 {[%clk 0:02:21]}  O-O-O {[%clk 0:02:21]} 12. Bg5 {[%clk 0:02:06]}  Qxc4 {[%clk 0:02:15]} 13. Qc1 {[%clk 0:01:49]}  Rhe8 {[%clk 0:02:09]} 14. Rd1 {[%clk 0:01:34]}  Rxd1+ {[%clk 0:02:04]} 15. Qxd1 {[%clk 0:01:33]}  Bxe5 {[%clk 0:02:02]} 16. Rc1 {[%clk 0:01:24]}  Rd8 {[%clk 0:01:01]} 17. Qe1 {[%clk 0:01:19]}  f6 {[%clk 0:01:00]} 18. Be3 {[%clk 0:01:14]}  Bxc3 {[%clk 0:00:52]} 19. Rxc3 {[%clk 0:01:13]}  Qe6 {[%clk 0:00:52]} 20. h3 {[%clk 0:01:06]}  Nd4 {[%clk 0:00:49]} 21. Bd1 {[%clk 0:00:54]}  Nd5 {[%clk 0:00:43]} 22. Rd3 {[%clk 0:00:49]}  Nxe3 {[%clk 0:00:41]} 23. Rxe3 {[%clk 0:00:45]}  Qd6 {[%clk 0:00:38]} 24. Bg4+ {[%clk 0:00:41]}  f5 {[%clk 0:00:37]} 25. Bf3 {[%clk 0:00:36]}  Nxf3+ {[%clk 0:00:35]} 26. Rxf3 {[%clk 0:00:34]}  Qd1 {[%clk 0:00:33]} 27. Qxd1 {[%clk 0:00:34]}  Rxd1+ {[%clk 0:00:33]} 28. Kh2 {[%clk 0:00:35]}  Rd2 {[%clk 0:00:32]} 29. Re3 {[%clk 0:00:33]}  Rxb2 {[%clk 0:00:30]} 30. Re7 {[%clk 0:00:33]}  Rxf2 {[%clk 0:00:29]} 31. Rxh7 {[%clk 0:00:32]}  c5 {[%clk 0:00:29]} 32. Rg7 {[%clk 0:00:30]}  c4 {[%clk 0:00:29]} 33. Rxg6 {[%clk 0:00:30]}  c3 {[%clk 0:00:29]} 34. Rg3 {[%clk 0:00:23]}  c2 {[%clk 0:00:29]} 35. Rc3+ {[%clk 0:00:23]}  Kd7 {[%clk 0:00:29]} 36. Kg3 {[%clk 0:00:22]}  Rd2 {[%clk 0:00:28]} 37. Kf3 {[%clk 0:00:19]}  Ke6 {[%clk 0:00:27]} 38. g4 {[%clk 0:00:18]}  Rd3+ {[%clk 0:00:25]} 39. Rxd3 {[%clk 0:00:11]}  c1=Q {[%clk 0:00:25]} 0-1


[Site "https://www.chess.com"]

[Event "Titled Tuesday Blitz August 15 Early 2023"]
[White "Shubenkova, Veronika"]
[Black "Preobrazhenska_D2011"]
[WhiteFideId "44124040"]
[WhiteElo "2480"]
[BlackElo "2294"]
[Result "1-0"]
[Round "5"]
[TimeControl "180+1"]
[Date "2023.08.15"]
[WhiteClock "0:01:05"]
[BlackClock "0:00:00"]
[Board "168"]

1. c4 {[%clk 0:03:00]}  e5 {[%clk 0:03:00]} 2. Nc3 {[%clk 0:03:00]}  Nf6 {[%clk 0:03:00]} 3. g3 {[%clk 0:03:00]}  d5 {[%clk 0:02:59]} 4. cxd5 {[%clk 0:03:00]}  Nxd5 {[%clk 0:03:00]} 5. Bg2 {[%clk 0:03:01]}  Nb6 {[%clk 0:02:58]} 6. e3 {[%clk 0:03:00]}  Be7 {[%clk 0:02:57]} 7. Nge2 {[%clk 0:03:00]}  O-O {[%clk 0:02:57]} 8. d3 {[%clk 0:03:00]}  N8d7 {[%clk 0:02:52]} 9. O-O {[%clk 0:03:00]}  Nc5 {[%clk 0:02:50]} 10. d4 {[%clk 0:02:59]}  exd4 {[%clk 0:02:46]} 11. exd4 {[%clk 0:02:59]}  Ne6 {[%clk 0:02:42]} 12. d5 {[%clk 0:02:59]}  Nc5 {[%clk 0:02:39]} 13. b4 {[%clk 0:02:58]}  Ncd7 {[%clk 0:02:35]} 14. a3 {[%clk 0:02:58]}  a5 {[%clk 0:02:23]} 15. b5 {[%clk 0:02:49]}  Nf6 {[%clk 0:02:17]} 16. Be3 {[%clk 0:02:34]}  Nc4 {[%clk 0:02:13]} 17. Bd4 {[%clk 0:02:33]}  Bf5 {[%clk 0:01:54]} 18. a4 {[%clk 0:02:25]}  Bb4 {[%clk 0:01:36]} 19. h3 {[%clk 0:02:19]}  Bd6 {[%clk 0:01:06]} 20. g4 {[%clk 0:02:19]}  Bg6 {[%clk 0:01:06]} 21. f4 {[%clk 0:02:10]}  h6 {[%clk 0:00:33]} 22. f5 {[%clk 0:02:08]}  Bh7 {[%clk 0:00:34]} 23. Qd3 {[%clk 0:02:07]}  Ne5 {[%clk 0:00:31]} 24. Qd2 {[%clk 0:02:01]}  Re8 {[%clk 0:00:24]} 25. Rae1 {[%clk 0:02:00]}  Nc4 {[%clk 0:00:19]} 26. Qd3 {[%clk 0:01:57]}  Ne5 {[%clk 0:00:19]} 27. Qc2 {[%clk 0:01:56]}  Qd7 {[%clk 0:00:14]} 28. Ne4 {[%clk 0:01:52]}  Nxd5 {[%clk 0:00:06]} 29. N2g3 {[%clk 0:01:40]}  Nb4 {[%clk 0:00:06]} 30. Qc3 {[%clk 0:01:32]}  Nbd3 {[%clk 0:00:04]} 31. Re3 {[%clk 0:01:31]}  Bb4 {[%clk 0:00:05]} 32. Qa1 {[%clk 0:01:30]}  Rad8 {[%clk 0:00:03]} 33. Bxe5 {[%clk 0:01:27]}  Nxe5 {[%clk 0:00:04]} 34. f6 {[%clk 0:01:26]}  g6 {[%clk 0:00:02]} 35. Kh1 {[%clk 0:01:14]}  Re6 {[%clk 0:00:03]} 36. Re2 {[%clk 0:01:14]}  Qd3 {[%clk 0:00:02]} 37. Qc1 {[%clk 0:01:09]}  Qb3 {[%clk 0:00:03]} 38. Qxh6 {[%clk 0:01:07]}  Bf8 {[%clk 0:00:03]} 39. Qh4 {[%clk 0:01:06]}  Qc4 {[%clk 0:00:00]} 40. Ng5 {[%clk 0:01:05]} 1-0


[Site "https://www.chess.com"]

[Event "Titled Tuesday Blitz August 15 Early 2023"]
[White "Konenkin, Dmitry"]
[Black "djathtaspogradec"]
[WhiteFideId "4185781"]
[WhiteElo "2285"]
[BlackElo "2480"]
[Result "1/2-1/2"]
[Round "5"]
[TimeControl "180+1"]
[Date "2023.08.15"]
[WhiteClock "0:00:06"]
[BlackClock "0:00:05"]
[Board "169"]

1. d4 {[%clk 0:03:00]}  d5 {[%clk 0:02:59]} 2. Bg5 {[%clk 0:03:00]}  a6 {[%clk 0:02:55]} 3. Nf3 {[%clk 0:02:59]}  h6 {[%clk 0:02:50]} 4. Bh4 {[%clk 0:02:59]}  c6 {[%clk 0:02:48]} 5. e3 {[%clk 0:02:59]}  Bf5 {[%clk 0:02:47]} 6. c4 {[%clk 0:02:58]}  Nd7 {[%clk 0:02:45]} 7. Nc3 {[%clk 0:02:57]}  Ngf6 {[%clk 0:02:40]} 8. Qb3 {[%clk 0:02:52]}  e6 {[%clk 0:02:29]} 9. cxd5 {[%clk 0:02:29]}  cxd5 {[%clk 0:02:29]} 10. Be2 {[%clk 0:02:18]}  b5 {[%clk 0:02:13]} 11. O-O {[%clk 0:02:15]}  Bd6 {[%clk 0:02:12]} 12. a4 {[%clk 0:02:01]}  b4 {[%clk 0:02:12]} 13. Na2 {[%clk 0:02:02]}  a5 {[%clk 0:02:12]} 14. Bb5 {[%clk 0:01:59]}  O-O {[%clk 0:02:12]} 15. Rac1 {[%clk 0:01:50]}  g5 {[%clk 0:01:25]} 16. Bg3 {[%clk 0:01:49]}  Bxg3 {[%clk 0:01:24]} 17. hxg3 {[%clk 0:01:50]}  Rc8 {[%clk 0:01:09]} 18. Rxc8 {[%clk 0:01:41]}  Qxc8 {[%clk 0:01:10]} 19. Rc1 {[%clk 0:01:41]}  Qb8 {[%clk 0:01:11]} 20. Rc6 {[%clk 0:01:37]}  Rc8 {[%clk 0:01:00]} 21. Qd1 {[%clk 0:01:15]}  Rxc6 {[%clk 0:00:55]} 22. Bxc6 {[%clk 0:01:16]}  Qc7 {[%clk 0:00:55]} 23. Qc1 {[%clk 0:01:12]}  Bd3 {[%clk 0:00:23]} 24. Nd2 {[%clk 0:00:42]}  Ba6 {[%clk 0:00:20]} 25. Bxd7 {[%clk 0:00:32]}  Qxd7 {[%clk 0:00:21]} 26. b3 {[%clk 0:00:26]}  Qd6 {[%clk 0:00:17]} 27. Qc2 {[%clk 0:00:24]}  Nd7 {[%clk 0:00:17]} 28. Nc1 {[%clk 0:00:24]}  Kf8 {[%clk 0:00:17]} 29. Nd3 {[%clk 0:00:24]}  Ke7 {[%clk 0:00:17]} 30. Nf3 {[%clk 0:00:15]}  Bxd3 {[%clk 0:00:16]} 31. Qxd3 {[%clk 0:00:15]}  Qc6 {[%clk 0:00:17]} 32. Kf1 {[%clk 0:00:04]}  g4 {[%clk 0:00:14]} 33. Nd2 {[%clk 0:00:03]}  f5 {[%clk 0:00:14]} 34. Ke2 {[%clk 0:00:03]}  Nf6 {[%clk 0:00:14]} 35. f3 {[%clk 0:00:02]}  Qc7 {[%clk 0:00:13]} 36. fxg4 {[%clk 0:00:02]}  Nxg4 {[%clk 0:00:13]} 37. Nf1 {[%clk 0:00:02]}  Nf6 {[%clk 0:00:13]} 38. Kd2 {[%clk 0:00:02]}  Ne4+ {[%clk 0:00:13]} 39. Ke2 {[%clk 0:00:02]}  Nc3+ {[%clk 0:00:13]} 40. Kf2 {[%clk 0:00:02]}  Ne4+ {[%clk 0:00:14]} 41. Ke2 {[%clk 0:00:03]}  Nxg3+ {[%clk 0:00:15]} 42. Nxg3 {[%clk 0:00:03]}  Qxg3 {[%clk 0:00:15]} 43. Kf1 {[%clk 0:00:03]}  Qc7 {[%clk 0:00:15]} 44. Qb5 {[%clk 0:00:03]}  Qc1+ {[%clk 0:00:15]} 45. Kf2 {[%clk 0:00:04]}  Qc2+ {[%clk 0:00:14]} 46. Kf3 {[%clk 0:00:04]}  Qxb3 {[%clk 0:00:15]} 47. Qc5+ {[%clk 0:00:05]}  Kf7 {[%clk 0:00:14]} 48. Qxa5 {[%clk 0:00:06]}  Qd1+ {[%clk 0:00:13]} 49. Kf2 {[%clk 0:00:05]}  Qc2+ {[%clk 0:00:13]} 50. Kf3 {[%clk 0:00:06]}  b3 {[%clk 0:00:14]} 51. Qa7+ {[%clk 0:00:05]}  Kf6 {[%clk 0:00:14]} 52. Qb8 {[%clk 0:00:06]}  Qe4+ {[%clk 0:00:13]} 53. Kf2 {[%clk 0:00:06]}  Qc2+ {[%clk 0:00:13]} 54. Kf3 {[%clk 0:00:06]}  Qd1+ {[%clk 0:00:13]} 55. Kf2 {[%clk 0:00:06]}  Kf7 {[%clk 0:00:09]} 56. Qc7+ {[%clk 0:00:06]}  Kg6 {[%clk 0:00:09]} 57. Qd8 {[%clk 0:00:06]}  b2 {[%clk 0:00:07]} 58. Qg8+ {[%clk 0:00:05]}  Kh5 {[%clk 0:00:05]} 59. Qf7+ {[%clk 0:00:06]}  Kg5 {[%clk 0:00:05]} 60. Qg7+ {[%clk 0:00:06]}  Kh5 {[%clk 0:00:06]} 61. Qf7+ {[%clk 0:00:06]}  Kh4 {[%clk 0:00:05]} 62. Qf6+ {[%clk 0:00:06]}  Kh5 {[%clk 0:00:05]} 63. Qf7+ {[%clk 0:00:06]} 1/2-1/2


[Site "https://www.chess.com"]

[Event "Titled Tuesday Blitz August 15 Early 2023"]
[White "Levitan, Caleb Levi"]
[Black "Mackster23"]
[WhiteFideId "14332620"]
[WhiteElo "2284"]
[BlackElo "2476"]
[Result "0-1"]
[Round "5"]
[TimeControl "180+1"]
[Date "2023.08.15"]
[WhiteClock "0:00:24"]
[BlackClock "0:00:22"]
[Board "170"]

1. e4 {[%clk 0:03:00]}  c5 {[%clk 0:02:58]} 2. Nf3 {[%clk 0:03:00]}  e6 {[%clk 0:02:57]} 3. d4 {[%clk 0:03:00]}  cxd4 {[%clk 0:02:58]} 4. Nxd4 {[%clk 0:03:01]}  Nc6 {[%clk 0:02:58]} 5. Nc3 {[%clk 0:03:01]}  Qc7 {[%clk 0:02:58]} 6. Nxc6 {[%clk 0:03:01]}  bxc6 {[%clk 0:02:55]} 7. Bd3 {[%clk 0:03:01]}  d5 {[%clk 0:02:54]} 8. O-O {[%clk 0:03:01]}  Bd6 {[%clk 0:02:37]} 9. f4 {[%clk 0:02:52]}  Ne7 {[%clk 0:02:37]} 10. Kh1 {[%clk 0:02:48]}  O-O {[%clk 0:02:29]} 11. Qe2 {[%clk 0:02:30]}  Rb8 {[%clk 0:02:22]} 12. b3 {[%clk 0:02:14]}  Bd7 {[%clk 0:02:02]} 13. e5 {[%clk 0:02:06]}  Bb4 {[%clk 0:02:01]} 14. Bb2 {[%clk 0:02:02]}  c5 {[%clk 0:01:56]} 15. Nd1 {[%clk 0:01:47]}  g6 {[%clk 0:01:36]} 16. Ne3 {[%clk 0:01:39]}  h5 {[%clk 0:01:09]} 17. Qf2 {[%clk 0:01:10]}  d4 {[%clk 0:00:56]} 18. Nc4 {[%clk 0:01:07]}  Bc6 {[%clk 0:00:55]} 19. Qh4 {[%clk 0:00:58]}  Nf5 {[%clk 0:00:48]} 20. Bxf5 {[%clk 0:00:56]}  exf5 {[%clk 0:00:49]} 21. Qf6 {[%clk 0:00:50]}  Be4 {[%clk 0:00:44]} 22. e6 {[%clk 0:00:29]}  fxe6 {[%clk 0:00:32]} 23. Qxg6+ {[%clk 0:00:27]}  Qg7 {[%clk 0:00:33]} 24. Qxe6+ {[%clk 0:00:26]}  Kh8 {[%clk 0:00:31]} 25. Ne5 {[%clk 0:00:24]}  Qxg2# {[%clk 0:00:22]} 0-1


[Site "https://www.chess.com"]

[Event "Titled Tuesday Blitz August 15 Early 2023"]
[White "Gurevich, Dmitry"]
[Black "AndresDelgado77"]
[WhiteFideId "2000407"]
[WhiteElo "2473"]
[BlackElo "2267"]
[Result "1-0"]
[Round "5"]
[TimeControl "180+1"]
[Date "2023.08.15"]
[WhiteClock "0:00:56"]
[BlackClock "0:00:00"]
[Board "172"]

1. d4 {[%clk 0:03:00]}  Nf6 {[%clk 0:02:56]} 2. c4 {[%clk 0:03:00]}  e6 {[%clk 0:02:55]} 3. Nc3 {[%clk 0:03:00]}  d5 {[%clk 0:02:48]} 4. Nf3 {[%clk 0:02:59]}  h6 {[%clk 0:02:47]} 5. g3 {[%clk 0:02:58]}  Bd6 {[%clk 0:02:32]} 6. Bg2 {[%clk 0:02:54]}  O-O {[%clk 0:02:22]} 7. O-O {[%clk 0:02:53]}  Nc6 {[%clk 0:02:11]} 8. c5 {[%clk 0:02:41]}  Be7 {[%clk 0:02:02]} 9. a3 {[%clk 0:02:39]}  a5 {[%clk 0:01:45]} 10. Bf4 {[%clk 0:02:37]}  b6 {[%clk 0:01:39]} 11. cxb6 {[%clk 0:02:31]}  cxb6 {[%clk 0:01:34]} 12. Rc1 {[%clk 0:02:31]}  Bd7 {[%clk 0:01:13]} 13. Nb5 {[%clk 0:02:26]}  Rc8 {[%clk 0:01:10]} 14. Qb3 {[%clk 0:02:20]}  Ne4 {[%clk 0:01:06]} 15. Rfd1 {[%clk 0:02:12]}  a4 {[%clk 0:00:50]} 16. Qd3 {[%clk 0:01:50]}  Na5 {[%clk 0:00:46]} 17. Bc7 {[%clk 0:01:26]}  Qe8 {[%clk 0:00:18]} 18. Na7 {[%clk 0:01:25]}  Ra8 {[%clk 0:00:15]} 19. Bxb6 {[%clk 0:01:25]}  Nc4 {[%clk 0:00:15]} 20. Rxc4 {[%clk 0:01:23]}  Bb5 {[%clk 0:00:13]} 21. Nxb5 {[%clk 0:01:09]}  Qxb5 {[%clk 0:00:08]} 22. Rb4 {[%clk 0:01:09]}  Qxd3 {[%clk 0:00:07]} 23. exd3 {[%clk 0:01:08]}  Bxb4 {[%clk 0:00:08]} 24. dxe4 {[%clk 0:01:07]}  Be7 {[%clk 0:00:07]} 25. Ne5 {[%clk 0:00:59]}  Rab8 {[%clk 0:00:06]} 26. Nd7 {[%clk 0:00:59]}  Rb7 {[%clk 0:00:05]} 27. Nxf8 {[%clk 0:00:57]}  Rxb6 {[%clk 0:00:06]} 28. Nd7 {[%clk 0:00:57]}  dxe4 {[%clk 0:00:00]} 29. Nxb6 {[%clk 0:00:56]} 1-0


[Site "https://www.chess.com"]